[Event "Live Chess"]
[Site "Chess.com"]
[Date "2011.01.29"]
[Round "-"]
[White "trakster11"]
[Black "hipposcottimus"]
[Result "0-1"]
[CurrentPosition "6k1/bp2q1pp/p2p2b1/4p3/1P6/K2r1PQ1/P5PP/2R4R w - -"]
[Timezone "UTC"]
[ECO "C47"]
[ECOUrl "https://www.chess.com/openings/Four-Knights-Game-Italian-Variation"]
[UTCDate "2011.01.29"]
[UTCTime "23:38:47"]
[WhiteElo "1467"]
[BlackElo "1625"]
[TimeControl "60"]
[Termination "hipposcottimus won on time"]
[StartTime "23:38:47"]
[EndDate "2011.01.29"]
[EndTime "23:40:18"]
[Link "https://www.chess.com/game/live/92770827"]

1. e4 {[%clk 0:01:00]} 1... e5 {[%clk 0:01:00]} 2. Nf3 {[%clk 0:00:59.9]} 2... Nc6 {[%clk 0:00:59.4]} 3. Nc3 {[%clk 0:00:59.8]} 3... Nf6 {[%clk 0:00:58.9]} 4. Bc4 {[%clk 0:00:59.7]} 4... Bb4 {[%clk 0:00:58.5]} 5. Ng5 {[%clk 0:00:58.6]} 5... O-O {[%clk 0:00:57.4]} 6. Nxf7 {[%clk 0:00:55.6]} 6... Rxf7 {[%clk 0:00:56.9]} 7. Bxf7+ {[%clk 0:00:54.7]} 7... Kxf7 {[%clk 0:00:56.6]} 8. Nd5 {[%clk 0:00:53.5]} 8... Nxd5 {[%clk 0:00:54.8]} 9. exd5 {[%clk 0:00:52.8]} 9... Ne7 {[%clk 0:00:54.5]} 10. c3 {[%clk 0:00:51.3]} 10... Ba5 {[%clk 0:00:51.5]} 11. b4 {[%clk 0:00:49.4]} 11... Bb6 {[%clk 0:00:51.2]} 12. Qb3 {[%clk 0:00:48.2]} 12... d6 {[%clk 0:00:46.8]} 13. c4 {[%clk 0:00:45.9]} 13... a6 {[%clk 0:00:44.8]} 14. c5 {[%clk 0:00:45.1]} 14... Ba7 {[%clk 0:00:43.1]} 15. cxd6 {[%clk 0:00:43.6]} 15... cxd6 {[%clk 0:00:42.2]} 16. Qf3+ {[%clk 0:00:41.5]} 16... Kg8 {[%clk 0:00:41.6]} 17. d3 {[%clk 0:00:39]} 17... Bf5 {[%clk 0:00:39.8]} 18. Qg3 {[%clk 0:00:37.3]} 18... Bg6 {[%clk 0:00:37.5]} 19. Bg5 {[%clk 0:00:35.6]} 19... Qf8 {[%clk 0:00:35.5]} 20. Bxe7 {[%clk 0:00:33.9]} 20... Qxe7 {[%clk 0:00:35.3]} 21. f3 {[%clk 0:00:32]} 21... Rc8 {[%clk 0:00:32.9]} 22. Ke2 {[%clk 0:00:29.3]} 22... Rc2+ {[%clk 0:00:31.3]} 23. Kd1 {[%clk 0:00:27.3]} 23... Rc3 {[%clk 0:00:30.2]} 24. Rc1 {[%clk 0:00:25.3]} 24... Rxd3+ {[%clk 0:00:29.4]} 25. Kc2 {[%clk 0:00:23.8]} 25... Rxd5+ {[%clk 0:00:28.2]} 26. Kb2 {[%clk 0:00:21.3]} 26... Rd2+ {[%clk 0:00:27.1]} 27. Ka3 {[%clk 0:00:18.1]} 27... Rd3+ {[%clk 0:00:24.8]} 0-1

[Event "Live Chess"]
[Site "Chess.com"]
[Date "2011.01.29"]
[Round "-"]
[White "kasparovtitan"]
[Black "hipposcottimus"]
[Result "0-1"]
[CurrentPosition "2r3k1/1p3ppp/p7/8/8/3q1bP1/PP3P1P/2K1R3 w - -"]
[Timezone "UTC"]
[ECO "B01"]
[ECOUrl "https://www.chess.com/openings/Scandinavian-Defense-Blackburne-Kloosterboer-Gambit"]
[UTCDate "2011.01.29"]
[UTCTime "23:35:33"]
[WhiteElo "1569"]
[BlackElo "1620"]
[TimeControl "60"]
[Termination "hipposcottimus won by checkmate"]
[StartTime "23:35:33"]
[EndDate "2011.01.29"]
[EndTime "23:37:35"]
[Link "https://www.chess.com/game/live/92770179"]

1. e4 {[%clk 0:01:00]} 1... d5 {[%clk 0:01:00]} 2. exd5 {[%clk 0:00:58.7]} 2... c6 {[%clk 0:00:59.7]} 3. Nc3 {[%clk 0:00:58.4]} 3... cxd5 {[%clk 0:00:58.4]} 4. Nf3 {[%clk 0:00:57.8]} 4... d4 {[%clk 0:00:57.2]} 5. Nb5 {[%clk 0:00:56.6]} 5... a6 {[%clk 0:00:55.9]} 6. Nbxd4 {[%clk 0:00:55.5]} 6... Bg4 {[%clk 0:00:53.8]} 7. Nf5 {[%clk 0:00:51.7]} 7... Bxf5 {[%clk 0:00:49.6]} 8. Nh4 {[%clk 0:00:49.7]} 8... Bd7 {[%clk 0:00:47.6]} 9. Nf3 {[%clk 0:00:47.5]} 9... e5 {[%clk 0:00:47.2]} 10. Be2 {[%clk 0:00:46.9]} 10... e4 {[%clk 0:00:45.8]} 11. Ng1 {[%clk 0:00:43.9]} 11... Nf6 {[%clk 0:00:45.4]} 12. Nh3 {[%clk 0:00:42.9]} 12... Bc5 {[%clk 0:00:45]} 13. Nf4 {[%clk 0:00:41.9]} 13... O-O {[%clk 0:00:43]} 14. O-O {[%clk 0:00:40.8]} 14... Bc6 {[%clk 0:00:42.4]} 15. d3 {[%clk 0:00:39.8]} 15... Bd6 {[%clk 0:00:40.5]} 16. dxe4 {[%clk 0:00:37.3]} 16... Nxe4 {[%clk 0:00:37.4]} 17. Bf3 {[%clk 0:00:33]} 17... Qc7 {[%clk 0:00:36.5]} 18. Bxe4 {[%clk 0:00:32.2]} 18... Bxe4 {[%clk 0:00:35.4]} 19. Re1 {[%clk 0:00:29.5]} 19... Bxf4 {[%clk 0:00:34.5]} 20. Bxf4 {[%clk 0:00:27.6]} 20... Qxf4 {[%clk 0:00:29.8]} 21. g3 {[%clk 0:00:26.8]} 21... Qg4 {[%clk 0:00:27.5]} 22. Rf1 {[%clk 0:00:23.8]} 22... Bf3 {[%clk 0:00:25.2]} 23. Qd3 {[%clk 0:00:20.9]} 23... Nc6 {[%clk 0:00:23.3]} 24. Rfd1 {[%clk 0:00:19]} 24... Ne5 {[%clk 0:00:22]} 25. Rd2 {[%clk 0:00:17.8]} 25... Nxd3 {[%clk 0:00:20.7]} 26. Rxd3 {[%clk 0:00:16.4]} 26... Rad8 {[%clk 0:00:19.8]} 27. Kf1 {[%clk 0:00:15.7]} 27... Rxd3 {[%clk 0:00:18.2]} 28. cxd3 {[%clk 0:00:15.4]} 28... Be2+ {[%clk 0:00:17.6]} 29. Kg2 {[%clk 0:00:13.9]} 29... Bf3+ {[%clk 0:00:16.1]} 30. Kf1 {[%clk 0:00:12.8]} 30... Qh3+ {[%clk 0:00:15.6]} 31. Ke1 {[%clk 0:00:12.4]} 31... Re8+ {[%clk 0:00:14.3]} 32. Kd2 {[%clk 0:00:12.1]} 32... Rd8 {[%clk 0:00:13.2]} 33. Kc3 {[%clk 0:00:11.7]} 33... Qc8+ {[%clk 0:00:11.4]} 34. Kd2 {[%clk 0:00:10.7]} 34... Qd7 {[%clk 0:00:09.5]} 35. Re1 {[%clk 0:00:10.1]} 35... Qxd3+ {[%clk 0:00:08.8]} 36. Kc1 {[%clk 0:00:09.5]} 36... Rc8# {[%clk 0:00:07.2]} 0-1

[Event "Live Chess"]
[Site "Chess.com"]
[Date "2011.01.29"]
[Round "-"]
[White "hipposcottimus"]
[Black "kasparovtitan"]
[Result "1-0"]
[CurrentPosition "5k2/5N2/4P3/P1R5/7P/8/8/4R1K1 b - -"]
[Timezone "UTC"]
[ECO "B01"]
[ECOUrl "https://www.chess.com/openings/Scandinavian-Defense-Mieses-Kotrc-Variation-3.Nc3-Qe5-4.Be2"]
[UTCDate "2011.01.29"]
[UTCTime "23:32:46"]
[WhiteElo "1613"]
[BlackElo "1576"]
[TimeControl "60"]
[Termination "hipposcottimus won on time"]
[StartTime "23:32:46"]
[EndDate "2011.01.29"]
[EndTime "23:35:03"]
[Link "https://www.chess.com/game/live/92769451"]

1. e4 {[%clk 0:01:00]} 1... d5 {[%clk 0:01:00]} 2. exd5 {[%clk 0:00:58.4]} 2... Qxd5 {[%clk 0:00:59.7]} 3. Nc3 {[%clk 0:00:57.8]} 3... Qe5+ {[%clk 0:00:59.4]} 4. Be2 {[%clk 0:00:57.5]} 4... Qd6 {[%clk 0:00:58.5]} 5. d4 {[%clk 0:00:55.3]} 5... Nf6 {[%clk 0:00:57.9]} 6. Nf3 {[%clk 0:00:54.6]} 6... Nc6 {[%clk 0:00:56.6]} 7. O-O {[%clk 0:00:54.2]} 7... Bg4 {[%clk 0:00:54.8]} 8. d5 {[%clk 0:00:52.8]} 8... Nb4 {[%clk 0:00:52.7]} 9. Nb5 {[%clk 0:00:48.1]} 9... Qd7 {[%clk 0:00:50.4]} 10. Ne5 {[%clk 0:00:44.6]} 10... Qd8 {[%clk 0:00:45]} 11. Bxg4 {[%clk 0:00:40.1]} 11... Nxg4 {[%clk 0:00:43.7]} 12. Nxg4 {[%clk 0:00:39]} 12... Nxd5 {[%clk 0:00:42.9]} 13. c4 {[%clk 0:00:36.1]} 13... c5 {[%clk 0:00:41.8]} 14. Qa4 {[%clk 0:00:35.2]} 14... Qd7 {[%clk 0:00:35.1]} 15. cxd5 {[%clk 0:00:33.1]} 15... a6 {[%clk 0:00:33.5]} 16. Nc7+ {[%clk 0:00:30.1]} 16... Kd8 {[%clk 0:00:32.8]} 17. Qxd7+ {[%clk 0:00:29]} 17... Kxd7 {[%clk 0:00:32.3]} 18. Nxa8 {[%clk 0:00:28.6]} 18... Kc8 {[%clk 0:00:31.3]} 19. Nb6+ {[%clk 0:00:28.2]} 19... Kc7 {[%clk 0:00:30.3]} 20. Na4 {[%clk 0:00:27.7]} 20... Kd6 {[%clk 0:00:29.1]} 21. Nc3 {[%clk 0:00:26.8]} 21... Kc7 {[%clk 0:00:27]} 22. Bf4+ {[%clk 0:00:26.5]} 22... Kd8 {[%clk 0:00:25.4]} 23. Ne5 {[%clk 0:00:25.5]} 23... f6 {[%clk 0:00:24.3]} 24. Nf7+ {[%clk 0:00:23.9]} 24... Ke8 {[%clk 0:00:23.7]} 25. Nxh8 {[%clk 0:00:23.2]} 25... e5 {[%clk 0:00:23.1]} 26. dxe6 {[%clk 0:00:21.6]} 26... Ke7 {[%clk 0:00:21.3]} 27. Rfe1 {[%clk 0:00:19.6]} 27... g5 {[%clk 0:00:20.3]} 28. Nf7 {[%clk 0:00:19.3]} 28... gxf4 {[%clk 0:00:17.8]} 29. g3 {[%clk 0:00:18.7]} 29... fxg3 {[%clk 0:00:15.8]} 30. Na4 {[%clk 0:00:18.3]} 30... Bg7 {[%clk 0:00:15.4]} 31. fxg3 {[%clk 0:00:17]} 31... f5 {[%clk 0:00:14.9]} 32. Nxc5 {[%clk 0:00:16]} 32... b6 {[%clk 0:00:14]} 33. Nb7 {[%clk 0:00:14.9]} 33... Bxb2 {[%clk 0:00:12.7]} 34. Rad1 {[%clk 0:00:14.2]} 34... Ba3 {[%clk 0:00:11.2]} 35. Rd7+ {[%clk 0:00:12]} 35... Kf6 {[%clk 0:00:10.8]} 36. Nbd6 {[%clk 0:00:08.8]} 36... Bxd6 {[%clk 0:00:08.8]} 37. Rxd6 {[%clk 0:00:08.5]} 37... Ke7 {[%clk 0:00:07.5]} 38. Rxb6 {[%clk 0:00:08.1]} 38... f4 {[%clk 0:00:05.2]} 39. Rxa6 {[%clk 0:00:07.8]} 39... fxg3 {[%clk 0:00:04.5]} 40. hxg3 {[%clk 0:00:07.1]} 40... h5 {[%clk 0:00:02.5]} 41. a4 {[%clk 0:00:06.8]} 41... h4 {[%clk 0:00:02]} 42. gxh4 {[%clk 0:00:06.2]} 42... Kf6 {[%clk 0:00:01.7]} 43. Rc6 {[%clk 0:00:05.8]} 43... Ke7 {[%clk 0:00:00.6]} 44. Rc5 {[%clk 0:00:05.3]} 44... Kf8 {[%clk 0:00:00.3]} 45. a5 {[%clk 0:00:05]} 1-0

[Event "Live Chess"]
[Site "Chess.com"]
[Date "2011.01.29"]
[Round "-"]
[White "kasparovtitan"]
[Black "hipposcottimus"]
[Result "1-0"]
[CurrentPosition "1R2k3/7R/8/8/8/3r3P/6PK/8 b - -"]
[Timezone "UTC"]
[ECO "C65"]
[ECOUrl "https://www.chess.com/openings/Ruy-Lopez-Opening-Berlin-Defense-4.Bxc6-dxc6"]
[UTCDate "2011.01.29"]
[UTCTime "23:29:57"]
[WhiteElo "1584"]
[BlackElo "1605"]
[TimeControl "60"]
[Termination "kasparovtitan won on time"]
[StartTime "23:29:57"]
[EndDate "2011.01.29"]
[EndTime "23:32:05"]
[Link "https://www.chess.com/game/live/92768741"]

1. e4 {[%clk 0:01:00]} 1... e5 {[%clk 0:01:00]} 2. Nf3 {[%clk 0:00:59.3]} 2... Nc6 {[%clk 0:00:59.7]} 3. Bb5 {[%clk 0:00:58]} 3... Nf6 {[%clk 0:00:59.4]} 4. Bxc6 {[%clk 0:00:57.3]} 4... dxc6 {[%clk 0:00:59.2]} 5. Nxe5 {[%clk 0:00:56.9]} 5... Nxe4 {[%clk 0:00:58.3]} 6. Qe2 {[%clk 0:00:55.8]} 6... Bd6 {[%clk 0:00:56.9]} 7. Qxe4 {[%clk 0:00:53.7]} 7... O-O {[%clk 0:00:54.6]} 8. Nf3 {[%clk 0:00:51.2]} 8... Re8 {[%clk 0:00:53.7]} 9. Ne5 {[%clk 0:00:49.8]} 9... Rxe5 {[%clk 0:00:51.6]} 10. Qxe5 {[%clk 0:00:49.1]} 10... Bxe5 {[%clk 0:00:51.3]} 11. Nc3 {[%clk 0:00:48.8]} 11... Qe8 {[%clk 0:00:50.5]} 12. O-O {[%clk 0:00:47.6]} 12... Be6 {[%clk 0:00:48.4]} 13. d3 {[%clk 0:00:46.8]} 13... f6 {[%clk 0:00:47.9]} 14. Bd2 {[%clk 0:00:44.3]} 14... Qd8 {[%clk 0:00:47.5]} 15. Rfe1 {[%clk 0:00:43.1]} 15... Qd6 {[%clk 0:00:46.6]} 16. f4 {[%clk 0:00:42.2]} 16... Bxf4 {[%clk 0:00:45.2]} 17. Bxf4 {[%clk 0:00:41.3]} 17... Qxf4 {[%clk 0:00:39.4]} 18. Rxe6 {[%clk 0:00:40]} 18... Qd4+ {[%clk 0:00:37.7]} 19. Kh1 {[%clk 0:00:36.7]} 19... Qd7 {[%clk 0:00:37.3]} 20. Rae1 {[%clk 0:00:35.3]} 20... Rd8 {[%clk 0:00:36.6]} 21. Re7 {[%clk 0:00:34.6]} 21... Qd6 {[%clk 0:00:34.7]} 22. R1e6 {[%clk 0:00:32.6]} 22... Qd5 {[%clk 0:00:31.6]} 23. Nxd5 {[%clk 0:00:30.6]} 23... cxd5 {[%clk 0:00:30.2]} 24. Rxc7 {[%clk 0:00:30.1]} 24... Kf8 {[%clk 0:00:28.2]} 25. Rxb7 {[%clk 0:00:29.4]} 25... Kg8 {[%clk 0:00:26.3]} 26. Rxa7 {[%clk 0:00:28.5]} 26... h6 {[%clk 0:00:26]} 27. Ree7 {[%clk 0:00:27.7]} 27... Kh8 {[%clk 0:00:20.9]} 28. Rxg7 {[%clk 0:00:26.7]} 28... Rc8 {[%clk 0:00:18.4]} 29. Rh7+ {[%clk 0:00:24.3]} 29... Kg8 {[%clk 0:00:18.1]} 30. Rag7+ {[%clk 0:00:24]} 30... Kf8 {[%clk 0:00:17.8]} 31. Rf7+ {[%clk 0:00:23.7]} 31... Kg8 {[%clk 0:00:17.2]} 32. Rhg7+ {[%clk 0:00:23.1]} 32... Kh8 {[%clk 0:00:16.7]} 33. Rd7 {[%clk 0:00:22.3]} 33... Rxc2 {[%clk 0:00:12.1]} 34. h3 {[%clk 0:00:21.6]} 34... Rc1+ {[%clk 0:00:10.3]} 35. Kh2 {[%clk 0:00:21]} 35... Rc2 {[%clk 0:00:09.9]} 36. Rgf7 {[%clk 0:00:19.7]} 36... Kg8 {[%clk 0:00:08]} 37. Rxf6 {[%clk 0:00:18.2]} 37... Rxb2 {[%clk 0:00:06.5]} 38. Re6 {[%clk 0:00:17.2]} 38... Kf8 {[%clk 0:00:04.4]} 39. Rxh6 {[%clk 0:00:16]} 39... Ke8 {[%clk 0:00:03.4]} 40. Rxd5 {[%clk 0:00:15.2]} 40... Rxa2 {[%clk 0:00:02.6]} 41. Rb5 {[%clk 0:00:14.4]} 41... Rd2 {[%clk 0:00:02]} 42. Rh7 {[%clk 0:00:13.8]} 42... Rxd3 {[%clk 0:00:00.8]} 43. Rb8+ {[%clk 0:00:13.2]} 1-0

[Event "Live Chess"]
[Site "Chess.com"]
[Date "2011.01.29"]
[Round "-"]
[White "hipposcottimus"]
[Black "kasparovtitan"]
[Result "1-0"]
[CurrentPosition "1R6/8/8/8/7P/1P2k1P1/8/7K w - -"]
[Timezone "UTC"]
[ECO "C42"]
[ECOUrl "https://www.chess.com/openings/Petrovs-Defense-Urusov-Gambit"]
[UTCDate "2011.01.29"]
[UTCTime "23:27:30"]
[WhiteElo "1614"]
[BlackElo "1575"]
[TimeControl "60"]
[Termination "hipposcottimus won by resignation"]
[StartTime "23:27:30"]
[EndDate "2011.01.29"]
[EndTime "23:29:14"]
[Link "https://www.chess.com/game/live/92768151"]

1. e4 {[%clk 0:01:00]} 1... e5 {[%clk 0:01:00]} 2. Nf3 {[%clk 0:00:59.5]} 2... Nf6 {[%clk 0:00:59.7]} 3. Bc4 {[%clk 0:00:59.2]} 3... Qe7 {[%clk 0:00:59.1]} 4. d3 {[%clk 0:00:57.8]} 4... Nc6 {[%clk 0:00:57.4]} 5. Bg5 {[%clk 0:00:57.4]} 5... d6 {[%clk 0:00:56.1]} 6. Nbd2 {[%clk 0:00:56.1]} 6... h6 {[%clk 0:00:55]} 7. Bh4 {[%clk 0:00:54.2]} 7... g5 {[%clk 0:00:53.8]} 8. Nxg5 {[%clk 0:00:53.9]} 8... hxg5 {[%clk 0:00:52.4]} 9. Bxg5 {[%clk 0:00:53.7]} 9... Rh5 {[%clk 0:00:50.7]} 10. Qxh5 {[%clk 0:00:48.9]} 10... Nxh5 {[%clk 0:00:49.4]} 11. Bxe7 {[%clk 0:00:48.7]} 11... Bxe7 {[%clk 0:00:49.1]} 12. O-O {[%clk 0:00:46.3]} 12... Nf4 {[%clk 0:00:48.6]} 13. g3 {[%clk 0:00:44.9]} 13... Ne2+ {[%clk 0:00:47.5]} 14. Kh1 {[%clk 0:00:43]} 14... Ned4 {[%clk 0:00:46.6]} 15. c3 {[%clk 0:00:41]} 15... Nc2 {[%clk 0:00:45.2]} 16. Rac1 {[%clk 0:00:40.7]} 16... Ne3 {[%clk 0:00:43.1]} 17. fxe3 {[%clk 0:00:39.5]} 17... Be6 {[%clk 0:00:42.1]} 18. d4 {[%clk 0:00:37.2]} 18... Bxc4 {[%clk 0:00:40.3]} 19. Nxc4 {[%clk 0:00:36.9]} 19... exd4 {[%clk 0:00:38.6]} 20. exd4 {[%clk 0:00:35.8]} 20... O-O-O {[%clk 0:00:36.3]} 21. e5 {[%clk 0:00:35.3]} 21... Na5 {[%clk 0:00:35.5]} 22. Nxa5 {[%clk 0:00:33.2]} 22... dxe5 {[%clk 0:00:34.3]} 23. dxe5 {[%clk 0:00:32.6]} 23... f6 {[%clk 0:00:32.7]} 24. Nc4 {[%clk 0:00:32]} 24... fxe5 {[%clk 0:00:30.2]} 25. Nxe5 {[%clk 0:00:31.6]} 25... Bd6 {[%clk 0:00:29.9]} 26. Nf7 {[%clk 0:00:31.1]} 26... Be7 {[%clk 0:00:29]} 27. Nd6+ {[%clk 0:00:30.8]} 27... Bxd6 {[%clk 0:00:27.4]} 28. Rfd1 {[%clk 0:00:30.5]} 28... c6 {[%clk 0:00:25.8]} 29. Rf1 {[%clk 0:00:30.2]} 29... b5 {[%clk 0:00:25.1]} 30. Rf6 {[%clk 0:00:29.4]} 30... a6 {[%clk 0:00:24.8]} 31. Rd1 {[%clk 0:00:29]} 31... Kc7 {[%clk 0:00:23.6]} 32. Rf7+ {[%clk 0:00:28.7]} 32... Kb6 {[%clk 0:00:22.3]} 33. Rf6 {[%clk 0:00:28]} 33... Kc5 {[%clk 0:00:21.8]} 34. b4+ {[%clk 0:00:27.5]} 34... Kc4 {[%clk 0:00:19.4]} 35. Rfxd6 {[%clk 0:00:26.9]} 35... Rxd6 {[%clk 0:00:19]} 36. Rxd6 {[%clk 0:00:26.7]} 36... Kxc3 {[%clk 0:00:18.7]} 37. Rxc6+ {[%clk 0:00:26]} 37... Kxb4 {[%clk 0:00:18.3]} 38. Rxa6 {[%clk 0:00:25.7]} 38... Kc3 {[%clk 0:00:17.4]} 39. Rb6 {[%clk 0:00:24.9]} 39... b4 {[%clk 0:00:17.1]} 40. h4 {[%clk 0:00:23.9]} 40... b3 {[%clk 0:00:16.1]} 41. axb3 {[%clk 0:00:22.5]} 41... Kd3 {[%clk 0:00:15.3]} 42. Rb8 {[%clk 0:00:22.2]} 42... Ke3 {[%clk 0:00:14.9]} 1-0

[Event "Live Chess"]
[Site "Chess.com"]
[Date "2011.01.29"]
[Round "-"]
[White "kasparovtitan"]
[Black "hipposcottimus"]
[Result "1-0"]
[CurrentPosition "8/7k/5Qp1/5p1p/7P/6P1/5P1K/8 b - -"]
[Timezone "UTC"]
[ECO "C65"]
[ECOUrl "https://www.chess.com/openings/Ruy-Lopez-Opening-Berlin-Defense-4.Bxc6-dxc6"]
[UTCDate "2011.01.29"]
[UTCTime "23:24:26"]
[WhiteElo "1582"]
[BlackElo "1607"]
[TimeControl "60"]
[Termination "kasparovtitan won on time"]
[StartTime "23:24:26"]
[EndDate "2011.01.29"]
[EndTime "23:26:50"]
[Link "https://www.chess.com/game/live/92767537"]

1. e4 {[%clk 0:01:00]} 1... e5 {[%clk 0:01:00]} 2. Nf3 {[%clk 0:00:59.5]} 2... Nc6 {[%clk 0:00:59.6]} 3. Bb5 {[%clk 0:00:57.6]} 3... Nf6 {[%clk 0:00:59.3]} 4. Bxc6 {[%clk 0:00:57.1]} 4... dxc6 {[%clk 0:00:57.6]} 5. Nxe5 {[%clk 0:00:55.7]} 5... Nxe4 {[%clk 0:00:56.6]} 6. Qe2 {[%clk 0:00:54.7]} 6... Ng5 {[%clk 0:00:47.6]} 7. Nxc6+ {[%clk 0:00:52.8]} 7... Qe7 {[%clk 0:00:44.8]} 8. Nxe7 {[%clk 0:00:51.2]} 8... Bxe7 {[%clk 0:00:43.8]} 9. d3 {[%clk 0:00:50.9]} 9... Be6 {[%clk 0:00:41.8]} 10. Bxg5 {[%clk 0:00:50.4]} 10... Bxg5 {[%clk 0:00:40.2]} 11. O-O {[%clk 0:00:49.4]} 11... Bf6 {[%clk 0:00:39.5]} 12. Nc3 {[%clk 0:00:48.8]} 12... O-O {[%clk 0:00:39.2]} 13. Qd2 {[%clk 0:00:45.9]} 13... Rad8 {[%clk 0:00:38.3]} 14. b3 {[%clk 0:00:44.9]} 14... Bd5 {[%clk 0:00:36.6]} 15. Rad1 {[%clk 0:00:43.2]} 15... Bxc3 {[%clk 0:00:34.5]} 16. Qxc3 {[%clk 0:00:42.1]} 16... c6 {[%clk 0:00:34.2]} 17. d4 {[%clk 0:00:40.6]} 17... b6 {[%clk 0:00:32.1]} 18. Qb4 {[%clk 0:00:38.8]} 18... a6 {[%clk 0:00:31.8]} 19. Qxb6 {[%clk 0:00:32.7]} 19... Rb8 {[%clk 0:00:31.6]} 20. Qxa6 {[%clk 0:00:31.4]} 20... Rbe8 {[%clk 0:00:30.8]} 21. Rde1 {[%clk 0:00:29.5]} 21... f6 {[%clk 0:00:30.5]} 22. Rxe8 {[%clk 0:00:27.9]} 22... Rxe8 {[%clk 0:00:30.3]} 23. Qa5 {[%clk 0:00:26.7]} 23... Re4 {[%clk 0:00:28.2]} 24. Qc5 {[%clk 0:00:25.6]} 24... Kf7 {[%clk 0:00:27.1]} 25. g3 {[%clk 0:00:23.6]} 25... Kg6 {[%clk 0:00:26.6]} 26. h4 {[%clk 0:00:22.9]} 26... Re2 {[%clk 0:00:25.9]} 27. Kh2 {[%clk 0:00:21]} 27... Rxc2 {[%clk 0:00:24.5]} 28. Qb6 {[%clk 0:00:18.9]} 28... Rxa2 {[%clk 0:00:22.5]} 29. b4 {[%clk 0:00:18.6]} 29... Rb2 {[%clk 0:00:21.3]} 30. Rd1 {[%clk 0:00:16.9]} 30... Rb3 {[%clk 0:00:19.2]} 31. Rc1 {[%clk 0:00:16.2]} 31... Rd3 {[%clk 0:00:17.9]} 32. Rxc6 {[%clk 0:00:15.5]} 32... Bxc6 {[%clk 0:00:17.1]} 33. Qxc6 {[%clk 0:00:15]} 33... Rxd4 {[%clk 0:00:16.8]} 34. b5 {[%clk 0:00:14.5]} 34... Rb4 {[%clk 0:00:12.8]} 35. b6 {[%clk 0:00:13.1]} 35... Rb2 {[%clk 0:00:12.4]} 36. b7 {[%clk 0:00:12.4]} 36... Rb1 {[%clk 0:00:11.2]} 37. Qd7 {[%clk 0:00:12]} 37... Rb5 {[%clk 0:00:09.7]} 38. Qc7 {[%clk 0:00:10]} 38... Rc5 {[%clk 0:00:08.6]} 39. Qb8 {[%clk 0:00:09.2]} 39... Rb5 {[%clk 0:00:07.6]} 40. Qa7 {[%clk 0:00:08.4]} 40... Rb4 {[%clk 0:00:07]} 41. b8=Q {[%clk 0:00:06.5]} 41... Rxb8 {[%clk 0:00:06.1]} 42. Qxb8 {[%clk 0:00:06.2]} 42... h6 {[%clk 0:00:05.1]} 43. Qf4 {[%clk 0:00:05.8]} 43... Kh7 {[%clk 0:00:04.8]} 44. Qf5+ {[%clk 0:00:04.9]} 44... g6 {[%clk 0:00:03.8]} 45. Qc8 {[%clk 0:00:04.6]} 45... h5 {[%clk 0:00:03.5]} 46. Qd7+ {[%clk 0:00:04.1]} 46... Kh6 {[%clk 0:00:03.2]} 47. Qe7 {[%clk 0:00:03.2]} 47... f5 {[%clk 0:00:02.9]} 48. Qf8+ {[%clk 0:00:02.7]} 48... Kh7 {[%clk 0:00:01.5]} 49. Qf7+ {[%clk 0:00:02.4]} 49... Kh8 {[%clk 0:00:00.8]} 50. Qf8+ {[%clk 0:00:02]} 50... Kh7 {[%clk 0:00:00.5]} 51. Qf6 {[%clk 0:00:01.6]} 1-0

[Event "Live Chess"]
[Site "Chess.com"]
[Date "2011.01.29"]
[Round "-"]
[White "hipposcottimus"]
[Black "PeaceChess"]
[Result "0-1"]
[CurrentPosition "2b2rk1/1p4pp/2p1p3/p2pP3/1q6/Q7/5PPP/5R1K w - -"]
[Timezone "UTC"]
[ECO "C00"]
[ECOUrl "https://www.chess.com/openings/French-Defense-Normal-Variation"]
[UTCDate "2011.01.29"]
[UTCTime "23:06:00"]
[WhiteElo "1616"]
[BlackElo "1341"]
[TimeControl "60"]
[Termination "PeaceChess won on time"]
[StartTime "23:06:00"]
[EndDate "2011.01.29"]
[EndTime "23:07:45"]
[Link "https://www.chess.com/game/live/92762877"]

1. d4 {[%clk 0:01:00]} 1... e6 {[%clk 0:01:00]} 2. e4 {[%clk 0:00:58.5]} 2... d5 {[%clk 0:00:59.9]} 3. e5 {[%clk 0:00:57.8]} 3... f6 {[%clk 0:00:58.4]} 4. Nf3 {[%clk 0:00:57.2]} 4... fxe5 {[%clk 0:00:57.5]} 5. dxe5 {[%clk 0:00:56.9]} 5... Ne7 {[%clk 0:00:56.2]} 6. c3 {[%clk 0:00:56.5]} 6... Ng6 {[%clk 0:00:55.4]} 7. Qe2 {[%clk 0:00:54.2]} 7... Be7 {[%clk 0:00:54.8]} 8. Nbd2 {[%clk 0:00:50.7]} 8... O-O {[%clk 0:00:54.4]} 9. Nb3 {[%clk 0:00:50.3]} 9... Nd7 {[%clk 0:00:53.6]} 10. Bf4 {[%clk 0:00:46.1]} 10... Nc5 {[%clk 0:00:52.3]} 11. Bg3 {[%clk 0:00:44.1]} 11... Nxb3 {[%clk 0:00:51.1]} 12. axb3 {[%clk 0:00:42.9]} 12... a6 {[%clk 0:00:51]} 13. Rd1 {[%clk 0:00:42.5]} 13... c6 {[%clk 0:00:50.3]} 14. Qe3 {[%clk 0:00:42.2]} 14... Qb6 {[%clk 0:00:49.6]} 15. Be2 {[%clk 0:00:40.1]} 15... Qxb3 {[%clk 0:00:47.9]} 16. O-O {[%clk 0:00:38]} 16... Qxb2 {[%clk 0:00:46.5]} 17. Rd2 {[%clk 0:00:37.3]} 17... Qa3 {[%clk 0:00:45.4]} 18. Ng5 {[%clk 0:00:29.7]} 18... Bxg5 {[%clk 0:00:42.2]} 19. Qxg5 {[%clk 0:00:28.7]} 19... Qc5 {[%clk 0:00:40.9]} 20. Bf4 {[%clk 0:00:21]} 20... Nxf4 {[%clk 0:00:38.5]} 21. Rd4 {[%clk 0:00:17.2]} 21... Nxe2+ {[%clk 0:00:36.9]} 22. Kh1 {[%clk 0:00:16.9]} 22... Nf4 {[%clk 0:00:35.1]} 23. Rxf4 {[%clk 0:00:14.6]} 23... Rxf4 {[%clk 0:00:34.2]} 24. Qxf4 {[%clk 0:00:14.4]} 24... Bd7 {[%clk 0:00:33.2]} 25. Qg4 {[%clk 0:00:12.8]} 25... Rf8 {[%clk 0:00:31.6]} 26. Qg5 {[%clk 0:00:12.5]} 26... Qxc3 {[%clk 0:00:30.4]} 27. Qe7 {[%clk 0:00:10.6]} 27... Bc8 {[%clk 0:00:26.3]} 28. Qd6 {[%clk 0:00:08.8]} 28... a5 {[%clk 0:00:24.2]} 29. Qa3 {[%clk 0:00:07.1]} 29... Qb4 {[%clk 0:00:22.6]} 0-1